bitfinex/quotes_BTCUSD_20250303
["timestamp","ask_amount","ask_price","bid_price","bid_amount"]
[1741030582883,0.27175627,87034.0,87033.0,0.07637156]
[1741030583108,0.04196127,87034.0,87033.0,0.07637156]
[1741030583509,0.27175627,87034.0,87033.0,0.07637156]
[1741030583722,0.34196127,87034.0,87033.0,0.07637156]
[1741030584069,0.04196127,87031.0,87030.0,0.07637156]
[1741030584274,0.04196127,87043.0,87034.0,0.07637156]
[1741030584475,0.27172127,87047.0,87046.0,0.07637156]
[1741030584621,0.04196127,87047.0,87046.0,0.07637156]
[1741030584839,0.04196127,87041.0,87040.0,0.07137156]
[1741030585026,0.27174527,87038.0,87037.0,0.07137156]
[1741030585228,0.24777116,87047.0,86998.0,0.1]
[1741030585229,0.04196127,87034.0,87028.0,0.07137156]
[1741030585432,0.01800916,87047.0,87038.0,0.07137156]
[1741030585433,0.04196127,87039.0,87038.0,0.07137156]
[1741030585645,0.04196127,87038.0,87037.0,0.07137156]
[1741030585848,0.04196127,87038.0,87010.0,0.0776]
[1741030585849,0.22979,87036.0,87031.0,0.07137156]
[1741030586067,0.04196127,87025.0,87024.0,0.07137156]
[1741030586858,0.04196127,87037.0,87036.0,0.07137156]
[1741030587066,0.04196127,87041.0,87040.0,0.07137156]
[1741030587261,0.01966944,87050.0,87033.0,0.0001706]
[1741030587262,0.01966944,87050.0,87043.0,0.07137156]
[1741030587484,0.01966944,87050.0,87049.0,0.07137156]
[1741030587485,0.04196127,87050.0,87049.0,0.07137156]
[1741030588104,0.04196127,87065.0,87064.0,0.07137156]
[1741030588306,0.27167127,87066.0,87065.0,0.07137156]
[1741030588901,0.04196127,87067.0,87047.0,0.07137156]
[1741030589102,0.04196127,87067.0,87033.0,0.0001706]
[1741030589103,0.04196127,87034.0,87033.0,0.07154216]
[1741030589309,0.57175627,87034.0,87033.0,0.00056793]
[1741030590192,0.58031805,87034.0,87033.0,0.00056793]
[1741030590436,0.35052305,87034.0,87033.0,0.00056793]
[1741030590638,0.34196127,87034.0,87033.0,0.00056793]
[1741030590834,0.04196127,87040.0,87034.0,0.07137156]
[1741030591082,0.27172927,87044.0,87043.0,0.07137156]
[1741030591256,0.04196127,87041.0,87033.0,0.07193949]
[1741030591456,0.34196127,87039.0,87038.0,0.07137156]
[1741030591663,0.04196127,87034.0,87033.0,0.07193949]
[1741030592182,0.57175627,87034.0,87033.0,0.00056793]
[1741030592338,0.04196127,87003.0,87002.0,0.07792154]
[1741030592543,0.04196127,87003.0,87002.0,0.07804059]
[1741030592741,0.57181427,87012.0,87011.0,0.07137156]
[1741030592951,0.57181427,87012.0,87002.0,0.00666903]
[1741030592952,0.34196127,87011.0,87002.0,0.00666903]
[1741030593155,0.34196127,87011.0,86989.0,0.0795]
[1741030593156,0.1,86977.0,86961.0,0.0795]
[1741030593369,0.1,86970.0,86961.0,0.07961927]
[1741030593568,0.1,86983.0,86982.0,0.07137156]
[1741030594353,0.1,86983.0,86961.0,0.07961927]
[1741030594354,0.1,86970.0,86961.0,0.07961927]
[1741030594494,0.1,86968.0,86961.0,0.07961927]
[1741030594693,0.1,86975.0,86961.0,0.07961927]
[1741030594918,0.24795279,86983.0,86961.0,0.07961927]
[1741030594919,0.01802179,86983.0,86982.0,0.07137156]
[1741030595334,0.01802179,86983.0,86961.0,0.07961927]
[1741030595335,0.1,87010.0,87009.0,0.07137156]
[1741030595537,0.1,87016.0,87014.0,0.06637156]
[1741030595695,0.1,87015.0,87004.0,0.05703806]
[1741030595892,0.1,87001.0,86989.0,0.229914]
[1741030596152,0.034589,87015.0,87014.0,0.05703806]
[1741030596344,0.015549,87023.0,87022.0,0.05703806]
[1741030596748,0.015549,87023.0,87013.0,0.0827]
[1741030596749,0.1,87018.0,87013.0,0.0827]
[1741030596999,0.1,87008.0,87007.0,0.05703806]
[1741030597232,0.629871,87005.0,87004.0,0.00011927]
[1741030597436,0.629871,87005.0,87004.0,0.05715733]
[1741030598226,0.629871,87005.0,87004.0,0.00011927]
[1741030598767,0.629876,86988.0,86987.0,0.05703806]
[1741030598941,0.4,86988.0,86987.0,0.05703806]
[1741030599914,0.329972,86967.0,86966.0,0.00011934]
[1741030600100,0.629972,86967.0,86966.0,0.00011934]
[1741030600300,0.1,86967.0,86966.0,0.04468032]
[1741030600616,0.4,86967.0,86966.0,0.04468032]
[1741030600745,0.1,86988.0,86987.0,0.04456098]
[1741030600947,0.33838252,87006.0,87005.0,0.04456098]
[1741030601169,0.33838252,87006.0,86978.0,0.0825]
[1741030601170,0.1,87004.0,87003.0,0.04456098]
[1741030601369,0.1,86981.0,86978.0,0.0825]
[1741030601574,0.1,86981.0,86980.0,0.04456098]
[1741030601754,0.1,86995.0,86994.0,0.04456098]
[1741030601960,0.1,86976.0,86975.0,0.04456098]
[1741030602146,0.0198887,87006.0,86962.0,0.0764]
[1741030602147,0.1,86990.0,86981.0,0.04456098]
[1741030602515,0.05,86997.0,86996.0,0.04456098]
[1741030602722,0.01992221,87006.0,86980.0,4e-05]
[1741030602723,0.05,86998.0,86997.0,0.04456098]
[1741030602893,0.27989,86998.0,86997.0,0.04456098]
[1741030603107,0.279935,86981.0,86980.0,4e-05]
[1741030603304,0.3,86997.0,86990.0,0.04456098]
[1741030603305,0.05,86991.0,86990.0,0.04456098]
[1741030603482,0.01992221,87006.0,86980.0,4e-05]
[1741030603483,0.05,86998.0,86997.0,0.04456098]
[1741030603894,0.579874,87004.0,87003.0,0.04456098]
[1741030604136,0.229887,86999.0,86998.0,0.04456098]
[1741030604351,0.3,86992.0,86991.0,0.04456098]
[1741030604602,0.01801981,86998.0,86980.0,0.00015934]
[1741030604603,0.00470838,86997.0,86980.0,0.00015934]
[1741030604991,0.00470838,86997.0,86990.0,0.229911]
[1741030605299,0.00470838,86997.0,86980.0,0.00015934]
[1741030605662,0.05,86994.0,86984.0,0.229925]
[1741030605853,0.05,86994.0,86989.0,0.229911]
[1741030606056,0.00470838,86997.0,86996.0,0.229895]
[1741030606252,0.0003416,87034.0,86983.0,0.3]
[1741030606463,0.00120595,87022.0,86982.0,0.1288]
[1741030606660,0.40087784,87020.0,86982.0,0.0832]
[1741030606861,0.229889,86999.0,86984.0,0.25126809]
[1741030607144,0.229881,87002.0,86986.0,0.229919]
[1741030607349,0.229881,87002.0,86984.0,0.02134109]
[1741030607350,0.229848,87014.0,86996.0,0.229895]
[1741030607463,0.01991756,87022.0,86984.0,0.02134109]
[1741030607464,0.00120595,87013.0,86984.0,0.02134109]
[1741030607666,0.23105695,87013.0,86984.0,0.02134109]
[1741030607869,0.229851,87013.0,86984.0,0.02134109]
[1741030608069,0.1,87028.0,86984.0,0.02134109]
[1741030608070,0.00120595,87012.0,86984.0,0.02134109]
[1741030608407,0.229844,87016.0,86996.0,0.229895]
[1741030608610,0.00120595,87015.0,86980.0,0.00015934]
[1741030608773,0.05765891,87084.0,86980.0,0.00015934]
[1741030608774,0.14824,87059.0,87021.0,0.229829]
[1741030608974,0.01979339,87038.0,87004.0,0.229874]
[1741030609185,0.00120595,87022.0,86995.0,0.14824]
[1741030609478,0.229843,87016.0,86998.0,0.229888]
[1741030609676,0.01979339,87038.0,86992.0,0.0832]
[1741030609876,0.00154755,87034.0,86996.0,0.02145671]
[1741030610102,0.00154755,87034.0,87022.0,0.229826]
[1741030610302,0.0003416,87034.0,87022.0,0.229826]
[1741030610521,0.0003416,87034.0,87022.0,0.613026]
[1741030610730,0.0003416,87034.0,87033.0,0.529797]
[1741030610967,0.0003416,87034.0,87022.0,0.40256177]
[1741030610968,0.0003416,87034.0,87027.0,0.229813]
[1741030611178,0.0003416,87034.0,87022.0,0.0832]
[1741030611383,0.0003416,87034.0,87022.0,0.10465671]
[1741030611585,0.0003416,87034.0,87028.0,0.22981]
[1741030611756,0.0003416,87034.0,87022.0,0.10465671]
[1741030612290,0.0003416,87034.0,87033.0,0.229797]
[1741030612806,1e-06,87040.0,87039.0,0.629782]
[1741030613036,1e-06,87040.0,87039.0,1.75347261]
[1741030613249,0.09716055,87085.0,87072.0,0.607294]
[1741030613651,0.03394496,87073.0,87072.0,0.607294]
[1741030613872,0.03394496,87073.0,87072.0,0.707294]
[1741030614074,0.03394496,87073.0,87072.0,0.39734113]
[1741030614351,0.03394496,87073.0,87072.0,0.3776]
[1741030614573,0.03394496,87073.0,87060.0,0.0776]
[1741030614839,0.00120595,87072.0,87060.0,0.0776]
[1741030615047,0.03394496,87073.0,87072.0,0.01070434]
[1741030616002,0.01594428,87073.0,87072.0,0.01070434]
[1741030616717,0.01594428,87073.0,87058.0,0.22973]
[1741030616926,0.01594428,87073.0,87055.0,0.3]
[1741030617124,0.01594428,87073.0,87031.0,0.1484]
[1741030617125,0.00120595,87072.0,87031.0,0.1484]
[1741030617288,0.01594428,87073.0,87046.0,0.30160821]
[1741030617492,0.01594428,87073.0,87048.0,0.3]
[1741030617700,0.01594428,87073.0,87047.0,0.344641]
[1741030617908,0.01594428,87073.0,87069.0,0.229701]
[1741030618121,0.01594428,87073.0,87072.0,0.229694]
[1741030618327,0.01594428,87073.0,87072.0,0.277694]
[1741030618531,0.01594428,87073.0,87072.0,0.357594]
[1741030619533,0.01594428,87073.0,87072.0,0.1279]
[1741030619732,0.01594428,87073.0,87046.0,0.36001153]
[1741030619733,0.01594428,87073.0,87060.0,0.229724]
[1741030619905,0.01594428,87073.0,87057.0,0.3]
[1741030620046,0.01594428,87073.0,87067.0,0.229708]
[1741030620252,0.01594428,87073.0,87072.0,0.229694]
[1741030620700,0.01594428,87073.0,87056.0,0.0753]
[1741030620904,0.01594428,87073.0,87046.0,0.14796]
[1741030620905,0.00201008,87072.0,87046.0,0.14796]
[1741030621115,0.01594428,87073.0,87047.0,0.00120645]
[1741030621317,0.01594428,87073.0,87049.0,0.3]
[1741030621655,0.01594428,87073.0,87050.0,0.00120604]
[1741030621791,0.01594428,87073.0,87047.0,0.00120606]
[1741030622221,0.01594428,87073.0,87048.0,0.1]
[1741030622437,0.01594428,87073.0,87046.0,0.0159845]
[1741030622770,0.00201003,87072.0,87044.0,0.0753]
[1741030622942,0.00201003,87072.0,87048.0,0.229757]
[1741030623189,0.01813468,87072.0,87044.0,0.0753]
[1741030623397,0.01594428,87073.0,87057.0,0.229734]
[1741030623546,0.01594428,87073.0,87044.0,0.0753]
[1741030623755,0.01594428,87073.0,87072.0,0.229694]
[1741030624422,0.01594428,87073.0,87045.0,0.02129915]
[1741030624623,0.0342855,87073.0,87072.0,0.229694]
[1741030625240,0.01628408,87073.0,87072.0,0.5457966]
[1741030625565,0.01628408,87073.0,87072.0,0.529694]
[1741030625788,0.01628408,87073.0,87048.0,0.1]
[1741030625997,0.01628408,87073.0,87050.0,4e-05]
[1741030626201,0.03223254,87073.0,87050.0,4e-05]
[1741030626664,0.229709,87067.0,87050.0,4e-05]
[1741030626863,0.01628408,87073.0,87053.0,0.229744]
[1741030627213,0.00201003,87072.0,87050.0,4e-05]
[1741030627359,0.229734,87057.0,87050.0,4e-05]
[1741030627579,0.00201042,87056.0,87050.0,4e-05]
[1741030627734,0.3,87062.0,87050.0,4e-05]
[1741030627939,0.229702,87070.0,87050.0,4e-05]
[1741030628134,0.229731,87059.0,87050.0,4e-05]
[1741030628417,0.229727,87060.0,87050.0,4e-05]
[1741030628537,0.3,87069.0,87050.0,4e-05]
[1741030628744,0.52975,87051.0,87050.0,4e-05]
[1741030629561,0.229863,87008.0,87000.0,4e-05]
[1741030629761,0.0458,87070.0,87009.0,0.1]
[1741030629959,0.00201092,87069.0,87010.0,0.0767076]
[1741030630191,0.229741,87055.0,87014.0,0.4481]
[1741030630389,0.229712,87066.0,87044.0,0.229767]
[1741030630716,0.00039504,87055.0,87023.0,0.3]
[1741030630920,0.0457,87109.0,87050.0,0.0755]
[1741030631181,0.00011844,87055.0,87054.0,0.229742]
[1741030632607,0.01812206,87055.0,87054.0,0.229742]
[1741030632808,0.01812206,87055.0,87054.0,0.229782]
[1741030633439,6e-08,87055.0,87054.0,0.529782]
[1741030633640,0.09716055,87082.0,87081.0,0.229671]
[1741030633862,0.09716055,87082.0,87081.0,0.607771]
[1741030633863,0.00011978,87082.0,87081.0,0.607771]
[1741030634063,7.8e-07,87082.0,87081.0,0.853771]
[1741030634275,0.0003416,87110.0,87105.0,0.229607]
[1741030634439,0.0003416,87110.0,87089.0,0.344475]
[1741030634440,0.50087784,87180.0,87138.0,0.229518]
[1741030634641,0.0003396,87143.0,87137.0,0.1]
[1741030634843,0.0003396,87143.0,87142.0,0.1]
[1741030635306,0.0003396,87143.0,87142.0,0.32951]
[1741030636271,0.00073718,87143.0,87142.0,0.1]
[1741030636477,0.00073718,87143.0,87142.0,0.33111645]
[1741030636676,0.00073718,87143.0,87142.0,0.32951]
[1741030637114,0.00073718,87143.0,87142.0,0.32955]
[1741030637476,0.00073718,87143.0,87142.0,0.62955]
[1741030637700,0.10090193,87161.0,87160.0,0.329463]
[1741030637906,0.10090193,87161.0,87160.0,0.553863]
[1741030637907,0.10102117,87161.0,87160.0,0.553863]
[1741030639077,0.00011924,87161.0,87160.0,0.553863]
[1741030639500,0.015549,87172.0,87161.0,0.4]
[1741030639715,0.03094735,87222.0,87188.0,0.329389]
[1741030639932,0.01566811,87189.0,87188.0,0.329389]
[1741030640131,0.01566811,87189.0,87188.0,0.629389]
[1741030641368,0.01566811,87189.0,87188.0,0.329389]
[1741030642941,0.01566811,87189.0,87186.0,0.229393]
[1741030643141,0.01566811,87189.0,87188.0,0.329429]
[1741030643442,0.01566811,87189.0,87188.0,0.629429]
[1741030643640,0.01566811,87189.0,87188.0,0.729429]
[1741030643781,1.1e-07,87189.0,87188.0,0.729429]
[1741030644010,0.015549,87222.0,87205.0,0.329344]
[1741030644211,0.015549,87222.0,87205.0,0.776744]
[1741030644573,0.015549,87222.0,87205.0,0.876744]
[1741030644777,0.03351984,87206.0,87205.0,0.876744]
[1741030644894,0.03351984,87206.0,87205.0,0.776744]
[1741030645094,0.015549,87206.0,87205.0,0.976744]
[1741030645663,0.015549,87206.0,87205.0,0.876744]
[1741030645867,0.015549,87206.0,87205.0,0.676744]
[1741030646062,0.015549,87206.0,87205.0,0.4]
[1741030646261,0.015549,87206.0,87205.0,0.1]
[1741030646918,0.015549,87206.0,87205.0,0.329344]
[1741030647144,0.015549,87206.0,87205.0,0.1]
[1741030647568,0.015549,87206.0,87188.0,4e-05]
[1741030647916,0.229371,87195.0,87194.0,0.1]
[1741030648122,0.229366,87197.0,87196.0,0.1]
[1741030648268,0.229366,87197.0,87188.0,4e-05]
[1741030648269,0.01589092,87202.0,87191.0,0.1]
[1741030648447,0.015549,87206.0,87205.0,0.1]
[1741030648657,0.015549,87206.0,87205.0,0.329344]
[1741030649065,0.0158882,87206.0,87205.0,0.329344]
[1741030649261,0.0158882,87206.0,87205.0,0.1]
[1741030649715,0.2452302,87206.0,87205.0,0.1]
[1741030649884,0.229349,87203.0,87202.0,0.1]
[1741030650097,0.229349,87203.0,87188.0,4e-05]
[1741030650098,0.0158882,87206.0,87205.0,0.1]
[1741030650378,0.2452302,87206.0,87205.0,0.1]
[1741030650600,0.229368,87196.0,87195.0,0.1]
[1741030650801,0.229363,87198.0,87197.0,0.1]
[1741030651013,0.229386,87189.0,87188.0,4e-05]
[1741030651186,0.529386,87189.0,87188.0,4e-05]
[1741030652527,0.3,87189.0,87188.0,4e-05]
[1741030652882,0.529386,87189.0,87188.0,4e-05]
[1741030653878,0.54736894,87189.0,87188.0,4e-05]
[1741030654626,0.54736894,87189.0,87120.0,0.40087784]
[1741030654627,0.229478,87154.0,87153.0,0.1]
[1741030654831,0.0456,87182.0,87137.0,0.14716]
[1741030654832,0.40087784,87180.0,87155.0,0.1]
[1741030655034,0.0456,87182.0,87155.0,0.1]
[1741030655035,0.3,87167.0,87155.0,0.1]
[1741030655249,0.000805,87166.0,87157.0,0.1]
[1741030655480,0.0028589,87166.0,87160.0,0.1]
[1741030655728,0.0028589,87166.0,87147.0,0.00011911]
[1741030655729,0.0028589,87166.0,87151.0,0.1]
[1741030655989,0.0028589,87166.0,87159.0,0.1]
[1741030656189,0.0028589,87166.0,87165.0,0.329449]
[1741030656394,0.0028589,87166.0,87165.0,0.1]
[1741030656395,0.2323059,87166.0,87165.0,0.1]
[1741030656616,0.0028589,87166.0,87163.0,0.1]
[1741030656823,0.0028589,87166.0,87158.0,0.1]
[1741030657020,0.229468,87158.0,87157.0,0.1]
[1741030657226,0.3,87161.0,87157.0,0.1]
[1741030657448,0.3028589,87161.0,87157.0,0.1]
[1741030657876,0.0028589,87161.0,87160.0,0.1]
[1741030658073,0.0028589,87161.0,87160.0,0.329463]
[1741030658729,0.0028589,87161.0,87160.0,0.1]
[1741030659431,0.0028589,87161.0,87160.0,0.329463]
[1741030659604,0.0028589,87161.0,87149.0,0.14712]
[1741030659802,0.0028589,87161.0,87147.0,0.00011911]
[1741030659955,0.0028589,87161.0,87160.0,0.1]
[1741030660956,0.0028589,87161.0,87160.0,0.329463]
[1741030661161,0.0028589,87161.0,87160.0,0.1]
[1741030661456,0.0028589,87161.0,87147.0,0.00011911]
[1741030661604,0.0028589,87161.0,87160.0,0.0001695]
[1741030661805,0.0028589,87161.0,87160.0,0.1001695]
[1741030662237,0.0028589,87161.0,87160.0,0.1763695]
[1741030662411,0.0028589,87161.0,87160.0,0.4058325]
[1741030662998,0.0028589,87161.0,87160.0,0.1001695]
[1741030663318,0.0028589,87161.0,87160.0,0.33123853]
[1741030663516,0.0028589,87161.0,87160.0,0.3296325]
[1741030663815,0.0028589,87161.0,87160.0,0.4766725]
[1741030664024,0.0208403,87161.0,87160.0,0.4766725]
[1741030664230,3e-07,87161.0,87160.0,0.6296325]
[1741030664407,0.000339,87189.0,87188.0,0.229389]
[1741030664608,0.000339,87189.0,87188.0,0.329389]
[1741030664817,0.000339,87189.0,87188.0,0.1]
[1741030665132,0.000339,87189.0,87186.0,0.1]
[1741030665314,0.000339,87189.0,87188.0,0.072]
[1741030665838,0.000339,87189.0,87186.0,0.072]
[1741030666084,0.000339,87189.0,87175.0,0.00011911]
[1741030666085,0.000339,87189.0,87188.0,0.072]
[1741030666293,0.000339,87189.0,87188.0,0.301389]
[1741030666468,0.000339,87189.0,87188.0,0.072]
[1741030666892,0.000339,87189.0,87175.0,0.00011911]
[1741030666893,0.000339,87189.0,87185.0,0.072]
[1741030667121,0.2294,87184.0,87179.0,0.072]
[1741030667325,0.000339,87189.0,87175.0,0.00011911]
[1741030667637,0.52942,87176.0,87175.0,0.00011911]
[1741030668466,0.52911597,87176.0,87175.0,0.00011911]
[1741030669185,0.3,87176.0,87175.0,0.00011911]
[1741030669586,0.52942,87176.0,87175.0,0.00011911]
[1741030669965,0.54502107,87176.0,87175.0,0.00011911]
[1741030670765,0.58028435,87176.0,87175.0,0.00011911]
[1741030670963,0.31560107,87176.0,87175.0,0.00011911]
[1741030671178,0.54502107,87176.0,87175.0,0.00011911]
[1741030671426,0.54502107,87176.0,87175.0,1.1e-07]
[1741030671659,0.58029631,87176.0,87175.0,1.1e-07]
[1741030671856,0.61482431,87176.0,87175.0,1.1e-07]
[1741030672231,0.61482431,87176.0,87160.0,0.0001695]
[1741030672232,0.52946,87161.0,87160.0,0.0001695]
[1741030672436,0.56473524,87161.0,87160.0,5e-07]
[1741030672631,0.56473524,87161.0,87142.0,1e-07]
[1741030672632,0.529507,87143.0,87142.0,1e-07]
[1741030672808,0.56478224,87143.0,87142.0,2.4e-07]
[1741030673801,0.58277744,87143.0,87142.0,2.4e-07]
[1741030674002,0.229594,87110.0,87107.0,0.072]
[1741030674243,0.229584,87115.0,87111.0,0.072]
[1741030674466,0.3,87114.0,87100.0,0.0001694]
[1741030674613,0.229615,87102.0,87100.0,0.0001694]
[1741030674835,0.229615,87102.0,87101.0,0.08755]
[1741030675032,0.54761295,87102.0,87101.0,0.01555]
[1741030675602,0.31799795,87102.0,87101.0,0.01555]
[1741030676145,0.229601,87108.0,87101.0,0.01555]
[1741030676146,0.01611546,87114.0,87104.0,0.072]
[1741030676518,0.00011893,87115.0,87109.0,0.072]
[1741030676927,0.00011893,87115.0,87114.0,0.301584]
[1741030677550,0.00011893,87115.0,87114.0,0.072]
[1741030677735,0.00011893,87115.0,87114.0,0.301584]
[1741030678310,0.00011893,87115.0,87111.0,0.312489]
[1741030678535,0.00011893,87115.0,87114.0,0.301584]
[1741030679259,0.00011893,87115.0,87114.0,0.072]
[1741030679489,0.00011893,87115.0,87114.0,0.301584]
[1741030679662,0.00011893,87115.0,87114.0,0.072]
[1741030680226,0.00011893,87115.0,87101.0,0.01555]
[1741030680426,0.229615,87102.0,87101.0,0.01555]
[1741030680629,0.3,87102.0,87101.0,0.01555]
[1741030680830,0.529615,87102.0,87101.0,0.01555]
[1741030681285,0.529618,87101.0,87100.0,4e-07]
[1741030681485,0.529618,87101.0,87066.0,0.072]
[1741030681486,0.52966,87085.0,87066.0,0.072]
[1741030681693,0.0453,87099.0,87068.0,0.08755]
[1741030681898,0.000805,87098.0,87068.0,0.08755]
[1741030682116,0.1,87096.0,87068.0,0.08755]
[1741030682325,0.229702,87069.0,87068.0,0.01555]
[1741030682531,0.3,87070.0,87068.0,0.01555]
[1741030682728,0.274924,87099.0,87083.0,0.072]
[1741030682931,0.229639,87094.0,87083.0,0.072]
[1741030683088,0.3,87098.0,87088.0,0.072]
[1741030683308,0.229632,87096.0,87088.0,0.072]
[1741030683497,0.3,87090.0,87074.0,0.072]
[1741030683700,0.229687,87075.0,87074.0,0.072]
[1741030683901,0.3,87070.0,87068.0,0.01594758]
[1741030684119,0.50087784,87100.0,87068.0,0.01594758]
[1741030684120,0.3,87069.0,87068.0,0.01594758]
[1741030684300,0.529702,87069.0,87068.0,5.8e-07]
[1741030684864,0.54444774,87069.0,87068.0,5.8e-07]
[1741030685079,0.55999774,87069.0,87068.0,5.8e-07]
[1741030685226,0.229715,87065.0,87051.0,0.00676006]
[1741030685431,0.01474574,87069.0,87062.0,0.072]
[1741030685612,0.01555,87075.0,87074.0,0.229689]
[1741030685828,0.01524895,87095.0,87085.0,0.229659]
[1741030686016,0.034552,87110.0,87099.0,0.072]
[1741030686236,0.034552,87110.0,87109.0,0.229597]
[1741030686587,0.01456334,87115.0,87104.0,0.072]
[1741030686745,0.01456334,87115.0,87084.0,0.14676]
[1741030686746,0.229607,87106.0,87084.0,0.14676]
[1741030686944,0.229655,87087.0,87084.0,0.072]
[1741030687141,0.229643,87092.0,87061.0,0.048]
[1741030687142,0.22966,87085.0,87082.0,0.072]
[1741030687349,0.3,87095.0,87074.0,0.072]
[1741030687563,0.3,87095.0,87066.0,0.07561923]
[1741030687564,0.3,87085.0,87080.0,0.072]
[1741030688048,0.229655,87088.0,87084.0,0.072]
[1741030688362,0.22966,87085.0,87084.0,0.072]
[1741030688564,0.229673,87081.0,87069.0,0.072]
[1741030688773,0.229677,87079.0,87078.0,0.072]
[1741030688984,0.229697,87072.0,87070.0,0.072]
[1741030689180,0.3,87071.0,87068.0,0.0001697]
[1741030689383,0.529702,87069.0,87068.0,0.0001697]
[1741030689594,0.3,87069.0,87068.0,0.0001697]
[1741030690006,0.14672,87117.0,87073.0,0.072]
[1741030690330,0.000805,87109.0,87092.0,0.072]
[1741030690466,0.229609,87105.0,87096.0,0.072]
[1741030690666,0.00859005,87117.0,87091.0,0.072]
[1741030690667,0.22963,87097.0,87091.0,0.072]
[1741030690886,0.3,87096.0,87085.0,0.072]
[1741030691089,0.000805,87095.0,87074.0,0.072]
[1741030691351,0.000805,87100.0,87075.0,0.072]
[1741030691549,0.3,87094.0,87075.0,0.072]
[1741030691823,0.3,87094.0,87059.0,0.00883731]
[1741030691824,0.3,87086.0,87069.0,0.072]
[1741030692024,0.229679,87078.0,87069.0,0.072]
[1741030692226,0.01539459,87101.0,87068.0,0.00028893]
[1741030692463,0.000805,87100.0,87070.0,0.072]
[1741030692636,0.22967,87082.0,87070.0,0.301697]
[1741030692831,0.229694,87073.0,87070.0,0.072]
[1741030693065,0.229697,87071.0,87070.0,0.072]
[1741030693237,0.229697,87071.0,87068.0,0.00028893]
[1741030693238,0.229702,87069.0,87068.0,0.00028893]
[1741030693648,0.24451121,87069.0,87068.0,0.00028893]
[1741030694049,0.229702,87069.0,87068.0,0.00028893]
[1741030694499,0.24479141,87069.0,87068.0,0.00028893]
[1741030695030,0.54479141,87069.0,87068.0,0.00028893]
[1741030695255,0.229743,87054.0,87048.0,0.06304899]
[1741030695417,0.229734,87058.0,87048.0,0.06304899]
[1741030695622,0.229748,87052.0,87048.0,0.06304899]
[1741030695864,0.31508941,87069.0,87048.0,0.06304899]
[1741030696047,0.03695101,87106.0,87062.0,0.06304899]
[1741030696305,0.000805,87100.0,87063.0,0.06304899]
[1741030696490,0.000805,87100.0,87073.0,0.29273999]
[1741030696673,0.229669,87082.0,87073.0,0.29273999]
[1741030696867,0.40087784,87090.0,87060.0,0.06304899]
[1741030697066,0.300805,87089.0,87060.0,0.06304899]
[1741030697312,0.344435,87099.0,87067.0,0.229707]
[1741030697468,0.01509644,87101.0,87061.0,0.06304899]
[1741030697469,0.000805,87098.0,87061.0,0.06304899]
[1741030697674,0.229696,87072.0,87061.0,0.06304899]
[1741030697868,0.229697,87072.0,87061.0,0.06304899]
[1741030698071,0.43782885,87120.0,87075.0,0.06304899]
[1741030698275,0.0003394,87101.0,87100.0,0.29266999]
[1741030698498,0.0003394,87101.0,87100.0,0.06304899]
[1741030698700,0.0003394,87101.0,87089.0,0.06304899]
[1741030698907,0.229633,87096.0,87090.0,0.06304899]
[1741030699147,0.00045836,87101.0,87093.0,0.229639]
[1741030699319,0.229623,87099.0,87095.0,0.06304899]
[1741030699526,0.229631,87096.0,87095.0,0.06304899]
[1741030699951,0.229631,87096.0,87081.0,0.1466]
[1741030699952,0.00045836,87101.0,87086.0,0.06304899]
[1741030700172,0.00045836,87101.0,87079.0,0.06304899]
[1741030700173,0.229668,87082.0,87079.0,0.06304899]
[1741030700375,0.229652,87088.0,87063.0,0.275917]
[1741030700376,0.229652,87088.0,87077.0,0.229679]
[1741030700549,0.229652,87088.0,87073.0,0.06304899]
[1741030700550,0.229654,87088.0,87081.0,0.06304899]
[1741030700751,0.229657,87087.0,87081.0,0.06304899]
[1741030700955,0.229657,87087.0,87063.0,0.19276]
[1741030700956,0.3,87099.0,87067.0,0.0001697]
[1741030701154,0.000805,87098.0,87072.0,0.06304899]
[1741030701769,0.229674,87080.0,87077.0,0.06304899]
[1741030701964,0.229659,87086.0,87072.0,0.06304899]
[1741030702190,0.00045836,87101.0,87081.0,0.06304899]
[1741030702392,0.000805,87100.0,87081.0,0.06304899]
[1741030702609,0.000805,87100.0,87067.0,0.0001697]
[1741030702610,0.000805,87100.0,87083.0,0.06304899]
[1741030702849,0.00045836,87101.0,87100.0,0.229621]
[1741030703163,0.00045836,87101.0,87100.0,0.29266999]
[1741030703366,0.00045836,87101.0,87100.0,0.06304899]
[1741030703611,0.22964,87093.0,87085.0,0.229659]
[1741030703832,0.229627,87098.0,87090.0,0.229647]
[1741030704034,0.00045836,87101.0,87095.0,0.06304899]
[1741030704237,0.00045836,87101.0,87100.0,0.06304899]
[1741030704434,0.00045836,87101.0,87100.0,0.29266999]
[1741030704650,0.00045836,87101.0,87092.0,0.0805]
[1741030704794,0.00045836,87101.0,87100.0,0.06304899]
[1741030705261,0.00045836,87101.0,87095.0,0.04904899]
[1741030705474,0.00045836,87101.0,87095.0,0.27868199]
[1741030705677,0.3,87099.0,87062.0,0.04904899]
[1741030705872,0.229705,87068.0,87062.0,0.04904899]
[1741030706089,0.3,87087.0,87065.0,0.04904899]
[1741030706203,0.229705,87068.0,87065.0,0.04904899]
[1741030706407,0.229705,87068.0,87047.0,0.0798]
[1741030706614,0.229705,87068.0,87049.0,0.229754]
[1741030707013,0.229705,87068.0,87063.0,0.04904899]
[1741030707222,0.229688,87075.0,87065.0,0.04904899]
[1741030707429,0.229705,87068.0,87065.0,0.04904899]
[1741030707641,0.229705,87068.0,87047.0,0.0798]
[1741030707845,0.229705,87068.0,87051.0,0.04904899]
[1741030708064,0.229705,87068.0,87053.0,0.04904899]
[1741030708267,0.229705,87068.0,87061.0,0.04904899]
[1741030708477,0.229705,87068.0,87053.0,0.04904899]
[1741030708821,0.01454358,87075.0,87061.0,0.04904899]
[1741030709023,0.3,87081.0,87061.0,0.04904899]
[1741030709024,0.03522106,87074.0,87063.0,0.229717]
[1741030709383,0.0499,87122.0,87082.0,0.27871699]
[1741030709619,0.74519284,87130.0,87071.0,0.0798]